bitfinex/quotes_ETHUSD_20251206
["timestamp","ask_amount","ask_price","bid_price","bid_amount"]
[1764994653724,0.002,3038.6,3038.5,5.61702022]
[1764994653895,0.897,3038.6,3038.5,0.001]
[1764994662628,4.18798927,3038.6,3038.5,0.001]
[1764994665025,0.897,3038.6,3038.5,0.001]
[1764994666749,0.4092,3038.6,3038.5,0.001]
[1764994667833,0.8827,3038.6,3038.5,0.001]
[1764994672149,0.4092,3038.6,3038.5,0.001]
[1764994673661,0.8827,3038.6,3038.5,0.001]
[1764994676751,4.17368927,3038.6,3038.5,0.001]
[1764994676950,5.00231914,3038.6,3038.5,0.001]
[1764994677267,5.10231914,3038.6,3038.5,0.001]
[1764994681992,5.72901325,3038.6,3038.5,0.001]
[1764994682974,5.82901325,3038.6,3038.5,0.001]
[1764994683295,6.44801325,3038.6,3038.5,0.001]
[1764994685099,6.85351725,3038.6,3038.5,0.001]
[1764994685404,6.98532186,3038.6,3038.5,0.001]
[1764994685924,8.98532186,3038.6,3038.5,0.001]
[1764994687992,8.98532186,3038.6,3037.8,0.001]
[1764994687993,0.605504,3037.9,3037.8,0.001]
[1764994688202,1.720104,3037.9,3037.8,0.001]
[1764994688402,2.44888772,3037.9,3037.8,0.001]
[1764994688608,7.41980719,3037.9,3037.8,0.001]
[1764994691424,1.51492241,3037.9,3037.8,0.4795]
[1764994691605,4.01734169,3037.9,3037.8,0.4795]
[1764994691805,4.49604169,3037.9,3037.8,0.001]
[1764994692097,3.77044758,3037.9,3037.8,0.001]
[1764994693456,4.79285158,3037.9,3037.8,0.001]
[1764994693607,6.32043545,3037.9,3037.8,0.001]
[1764994695432,7.04602956,3037.9,3037.8,0.001]
[1764994697705,7.17787458,3037.9,3037.8,0.001]
[1764994697909,7.46502956,3037.9,3037.8,0.001]
[1764994698607,6.52912956,3037.9,3037.8,0.001]
[1764994698830,7.04812956,3037.9,3037.8,0.001]
[1764994699244,7.46502956,3037.9,3037.8,0.001]
[1764994705451,7.56502956,3037.9,3037.8,0.001]
[1764994706774,7.6968837,3037.9,3037.8,0.001]
[1764994707137,7.1778837,3037.9,3037.8,0.001]
[1764994707342,7.5968837,3037.9,3037.8,0.001]
[1764994707679,7.1799837,3037.9,3037.8,0.001]
[1764994707875,7.5968837,3037.9,3037.8,0.001]
[1764994708496,7.6968837,3037.9,3037.8,0.001]
[1764994715005,7.1778837,3037.9,3037.8,0.001]
[1764994715210,7.6978837,3037.9,3037.8,0.001]
[1764994720612,8.5196169,3037.9,3037.8,0.001]
[1764994723807,8.1027169,3037.9,3037.8,0.001]
[1764994724618,7.0040169,3037.9,3037.8,0.4695]
[1764994724819,7.39216276,3037.9,3037.8,0.4695]
[1764994725414,7.49216276,3037.9,3037.8,0.4695]
[1764994725609,7.49216276,3037.9,3037.8,0.001]
[1764994726220,8.38696276,3037.9,3037.8,0.001]
[1764994726600,8.88656276,3037.9,3037.8,0.001]
[1764994731038,10.88656276,3037.9,3037.8,0.001]
[1764994732348,0.605504,3037.2,3036.9,0.4986]
[1764994732662,1.025504,3037.2,3037.1,0.6579]
[1764994732964,2.31259811,3037.2,3037.1,0.001]
[1764994733131,5.60510436,3037.2,3037.1,0.001]
[1764994733339,7.25589331,3037.2,3037.1,0.001]
[1764994733528,7.68979331,3037.2,3037.1,0.001]
[1764994735157,7.25589331,3037.2,3037.1,0.001]
[1764994736058,7.68979331,3037.2,3037.1,0.001]
[1764994736361,8.18839331,3037.2,3037.1,0.001]
[1764994736561,9.01012651,3037.2,3037.1,0.001]
[1764994738742,7.21062251,3037.2,3037.1,0.001]
[1764994738934,8.06012651,3037.2,3037.1,0.001]
[1764994739936,8.51132651,3037.2,3037.1,0.001]
[1764994741873,7.51612651,3037.2,3037.1,1.1376]
[1764994742060,5.86533756,3037.2,3037.1,1.1376]
[1764994743266,5.86533756,3037.2,3037.1,0.4807]
[1764994743574,5.86533756,3037.2,3037.1,0.9793]
[1764994743756,5.96533756,3037.2,3037.1,0.4807]
[1764994744472,5.96533756,3037.2,3037.1,0.9793]
[1764994744661,5.96533756,3037.2,3037.1,1.1446]
[1764994746604,5.34533756,3037.2,3037.1,1.1446]
[1764994746803,5.86533756,3037.2,3037.1,1.1446]
[1764994747368,5.34533756,3037.2,3037.1,1.1446]
[1764994748395,5.34533756,3037.2,3037.1,0.646]
[1764994748568,5.34533756,3037.2,3037.1,1.1446]
[1764994750101,5.34533756,3037.2,3037.1,0.4807]
[1764994750307,6.6825226,3037.2,3037.1,0.4807]
[1764994750489,6.6825226,3037.2,3037.1,0.9802]
[1764994751082,5.34533756,3037.2,3037.1,1.1363]
[1764994751318,5.24533756,3037.2,3037.1,1.1363]
[1764994752114,3.29250625,3037.2,3037.1,1.1363]
[1764994755631,3.39250625,3037.2,3037.1,1.1363]
[1764994760230,3.69801025,3037.2,3037.1,0.4807]
[1764994760431,3.79801025,3037.2,3037.1,0.9802]
[1764994762529,3.79801025,3037.2,3037.1,1.1363]
[1764994762530,3.29250625,3037.2,3037.1,1.1363]
[1764994763211,3.49250625,3037.2,3037.1,0.4807]
[1764994764920,3.89801025,3037.2,3037.1,0.4807]
[1764994766941,3.79801025,3037.2,3037.1,0.9802]
[1764994767237,3.29250625,3037.2,3037.1,1.1363]
[1764994775853,3.83430625,3037.2,3037.1,0.001]
[1764994776153,4.38770625,3037.2,3037.1,0.001]
[1764994776345,3.93430625,3037.2,3037.1,0.001]
[1764994776738,3.49250625,3037.2,3037.1,0.001]
[1764994776943,3.39250625,3037.2,3037.1,0.4761]
[1764994782758,5.09810587,3037.2,3037.1,0.001]
[1764994782950,5.55140587,3037.2,3037.1,0.001]
[1764994783250,5.09810587,3037.2,3037.1,0.001]
[1764994786468,4.65620587,3037.2,3037.1,0.476]
[1764994786763,5.09820587,3037.2,3037.1,0.001]
[1764994787651,4.65620587,3037.2,3037.1,0.001]
[1764994789260,4.65620587,3037.2,3037.1,0.476]
[1764994790365,5.05750587,3037.2,3037.1,0.001]
[1764994793766,4.65620587,3037.2,3037.1,0.476]
[1764994795573,4.65620587,3037.2,3037.1,0.001]
[1764994795574,5.05750587,3037.2,3037.1,0.001]
[1764994798585,4.65620587,3037.2,3037.1,0.001]
[1764994798771,4.65620587,3037.2,3037.1,0.4806]
[1764994800973,1.54932731,3037.3,3037.1,1.093]
[1764994801283,4.84172925,3037.3,3037.2,0.4796]
[1764994801459,5.24723325,3037.3,3037.2,0.9359]
[1764994801658,1.54932731,3037.3,3037.2,0.4796]
[1764994801877,1.64932731,3037.3,3037.2,0.4796]
[1764994802087,4.94172516,3037.3,3037.2,0.4796]
[1764994802760,0.002,3037.3,3037.2,6.79282584]
[1764994802956,0.002,3037.3,3037.2,11.43894737]
[1764994811273,0.002,3037.3,3037.2,11.95794737]
[1764994812782,0.002,3037.3,3037.2,6.10102153]
[1764994815590,0.002,3037.3,3037.2,11.95794737]
[1764994816179,0.002,3037.3,3037.2,12.0897446]
[1764994817008,0.002,3037.3,3037.2,12.81533871]
[1764994824482,0.002,3037.3,3037.2,4.77791876]
[1764994824677,0.002,3037.3,3037.2,4.28600625]
[1764994829212,0.002,3037.3,3037.2,4.75600625]
[1764994833339,0.002,3037.3,3037.2,4.28600625]
[1764994833703,0.002,3037.3,3037.2,4.75600625]
[1764994836702,0.4366,3037.3,3037.2,3.81150625]
[1764994836916,0.4366,3037.3,3037.2,0.519]
[1764994837206,0.8977,3037.3,3037.1,0.001]
[1764994837407,0.0046,3037.2,3037.1,0.001]
[1764994837601,0.4659,3037.2,3037.1,0.001]
[1764994839134,0.93410757,3037.2,3037.1,0.001]
[1764994843642,0.8237332,3037.3,3037.1,0.001]
[1764994843843,0.002,3037.3,3037.1,0.001]
[1764994844345,0.002,3037.3,3037.2,6.79005886]
[1764994845116,0.002,3037.3,3037.2,10.08256511]
[1764994851835,0.002,3037.3,3037.2,5.85615886]
[1764994852843,0.002,3037.3,3037.2,9.14866511]
[1764994853247,0.002,3037.3,3037.2,3.29250625]
[1764994854731,0.4338,3037.3,3037.1,3.29361466]
[1764994854931,0.4587,3037.2,3037.1,0.001]
[1764994855739,0.896,3037.2,3037.1,0.001]
[1764994856130,0.002,3037.3,3037.1,0.4903]
[1764994856356,0.002,3037.3,3037.2,0.945]
[1764994857147,0.002,3037.3,3037.2,3.78180625]
[1764994859562,0.002,3037.3,3037.2,9.63796511]
[1764994859730,0.002,3037.3,3037.2,10.09366511]
[1764994860226,0.002,3037.3,3037.2,9.63796511]
[1764994861241,0.002,3037.3,3037.2,11.13029424]
[1764994861436,0.002,3037.3,3037.2,11.58599424]
[1764994861762,0.002,3037.3,3037.2,12.31158835]
[1764994862963,0.002,3037.3,3037.2,12.44338428]
[1764994867766,0.002,3037.3,3037.2,12.31158835]
[1764994868532,0.002,3037.3,3037.2,11.85588835]
[1764994869064,0.002,3037.3,3037.2,12.31538835]
[1764994869570,0.8866,3037.3,3037.1,0.001]
[1764994869773,0.0156,3037.2,3037.1,0.001]
[1764994869936,0.4875,3037.2,3037.1,0.001]
[1764994872951,0.002,3037.3,3037.1,0.001]
[1764994873150,0.8961,3037.2,3037.1,0.001]
[1764994874772,1.06808332,3037.2,3037.1,0.001]
[1764994877676,0.17198332,3037.2,3037.1,0.001]
[1764994877980,0.4242,3037.2,3037.1,0.001]
[1764994878881,0.8956,3037.2,3037.1,0.001]
[1764994883975,0.9956,3037.2,3037.1,0.001]
[1764994884178,5.00983945,3037.2,3037.1,0.001]
[1764994884376,6.02243371,3037.2,3037.1,0.001]
[1764994885256,5.92243371,3037.2,3037.1,0.001]
[1764994886290,6.32793771,3037.2,3037.1,0.001]
[1764994891079,6.52793771,3037.2,3037.1,0.001]
[1764994891257,7.25353182,3037.2,3037.1,0.001]
[1764994895855,13.10969068,3037.2,3037.1,0.001]
[1764994901392,7.15353182,3037.2,3037.1,0.001]
[1764994902122,7.25353182,3037.2,3037.1,0.001]
[1764994903002,7.67253182,3037.2,3037.1,0.001]
[1764994903612,7.77253182,3037.2,3037.1,0.001]
[1764994904434,7.67253182,3037.2,3037.1,0.001]
[1764994908230,7.77253182,3037.2,3037.1,0.001]
[1764994913339,7.77353182,3037.2,3037.1,0.001]
[1764994917239,7.20213182,3037.2,3037.1,0.001]
[1764994917743,7.67353182,3037.2,3037.1,0.001]
[1764994921844,4.51974345,3037.2,3037.1,1.0912]
[1764994922031,5.24533756,3037.2,3037.1,1.0912]
[1764994923952,0.72559411,3037.2,3037.1,1.0912]
[1764994924419,0.002,3037.3,3037.1,1.0912]
[1764994924619,0.002,3037.3,3037.2,0.9917]
[1764994926146,0.002,3037.3,3037.2,4.72269812]
[1764994926455,0.002,3037.3,3037.2,1.43019187]
[1764994930752,0.002,3037.3,3037.2,0.9917]
[1764994934157,0.002,3037.3,3037.2,0.496]
[1764994934357,0.8977,3037.3,3037.1,0.001]
[1764994934573,0.0045,3037.2,3037.1,0.001]
[1764994935872,0.8262332,3037.2,3037.1,0.001]
[1764994938273,4.52424345,3037.2,3037.1,0.001]
[1764994938582,5.95339114,3037.2,3037.1,0.001]
[1764994949053,5.83459114,3037.2,3037.1,0.001]
[1764994950789,5.39379114,3037.2,3037.1,0.001]
[1764994951083,4.51974345,3037.2,3037.1,0.001]
[1764994951887,4.96074345,3037.2,3037.1,0.001]
[1764994952771,5.68633756,3037.2,3037.1,0.001]
[1764994953089,6.14113756,3037.2,3037.1,0.001]
[1764994953695,6.24113756,3037.2,3037.1,0.001]
[1764994953880,7.32877466,3037.2,3037.1,0.001]
[1764994961504,7.42877466,3037.2,3037.1,0.001]
[1764994963990,6.33297466,3037.2,3037.1,0.4625]
[1764994964307,5.24533756,3037.2,3037.1,0.9508]
[1764994965378,5.24533756,3037.2,3037.1,0.4625]
[1764994965606,5.24533756,3037.2,3037.1,0.9508]
[1764994972298,5.24533756,3037.2,3037.1,0.4625]
[1764994973219,5.24533756,3037.2,3037.1,0.9399]
[1764994978488,1.54732731,3037.2,3037.1,0.9399]
[1764994979698,0.72559411,3037.2,3037.1,0.9399]
[1764994979996,1.54732731,3037.2,3037.1,0.9399]
[1764994982529,4.83983356,3037.2,3037.1,0.4625]
[1764994982820,5.35273356,3037.2,3037.1,0.001]
[1764994984119,4.93983356,3037.2,3037.1,0.001]
[1764994984307,4.83983356,3037.2,3037.1,0.4875]
[1764994985195,4.83983356,3037.2,3037.1,0.001]
[1764994985789,6.20728024,3037.2,3037.1,0.001]
[1764994985996,6.68918024,3037.2,3037.1,0.001]
[1764994988027,6.68918024,3037.2,3036.4,0.001]
[1764994988028,0.405504,3037.1,3036.4,0.001]
[1764994988237,0.1,3035.5,3034.5,9.15232601]
[1764994988432,1.23109811,3035.9,3035.1,0.1912]
[1764994988636,0.1,3036.2,3035.3,5.8569036]
[1764994988927,0.4539,3036.4,3035.9,0.4881]
[1764994988928,0.925504,3036.0,3035.9,0.4881]
[1764994989925,4.94490575,3036.0,3035.9,0.4881]
[1764994990231,4.42490575,3036.0,3035.9,0.4881]
[1764994990431,4.94490575,3036.0,3035.9,0.4881]
[1764994992920,0.72559411,3035.9,3035.3,6.3214036]
[1764994993222,1.54732731,3035.9,3035.4,0.4645]
[1764994994450,4.84134785,3035.9,3035.4,0.4645]
[1764994994671,0.8217332,3035.7,3035.2,0.4645]
[1764994994962,0.1,3035.6,3035.2,0.4645]
[1764994995724,0.8217332,3035.5,3035.2,0.4645]
[1764994996124,0.8217332,3035.5,3035.4,0.4881]
[1764994996356,0.465,3035.3,3034.6,3.29531175]
[1764994996549,0.465,3035.3,3034.8,0.4645]
[1764994996550,3.75966083,3035.3,3034.8,0.4645]
[1764994996943,3.29466083,3035.3,3035.2,0.4881]
[1764994999434,3.29445872,3035.4,3035.2,0.4881]
[1764994999638,0.8217332,3035.3,3035.2,0.4881]
[1764995001534,4.11630045,3035.3,3035.2,0.4881]
[1764995002059,0.8217332,3035.3,3035.2,0.4881]
[1764995002633,0.8217332,3035.3,3035.2,0.9526]
[1764995003147,0.8217332,3035.3,3035.2,0.4881]
[1764995005262,4.51490563,3035.3,3035.1,0.001]
[1764995005938,1.2203332,3035.3,3035.1,0.001]
[1764995006273,4.11611266,3035.5,3035.2,0.9526]
[1764995006570,0.52,3035.4,3035.2,0.4645]
[1764995006736,0.405504,3035.7,3035.4,0.4881]
[1764995006941,0.405504,3035.7,3035.6,0.4881]
[1764995006942,1.7472372,3035.7,3035.6,0.4881]
[1764995007144,1.7472372,3035.7,3035.6,0.9526]
[1764995007362,1.7472372,3035.7,3035.6,0.4881]
[1764995007742,5.04137034,3035.7,3035.6,0.4881]
[1764995009551,4.11586634,3035.7,3035.6,0.4881]
[1764995009755,4.52137034,3035.7,3035.6,0.4881]
[1764995010373,1.2272372,3035.7,3035.6,0.4881]
[1764995010749,4.11586634,3035.7,3035.6,0.4881]
[1764995011855,4.51446634,3035.7,3035.4,0.4645]
[1764995013378,4.52137034,3035.7,3035.6,0.4881]
[1764995015879,4.11586634,3035.7,3035.6,0.4881]
[1764995016562,3.29413314,3035.7,3035.6,0.4881]
[1764995019777,3.69952863,3035.8,3035.6,0.4881]
[1764995020088,0.8217332,3035.7,3035.6,0.4881]
[1764995020380,0.386,3035.7,3035.2,6.3456036]
[1764995020680,3.29402463,3035.8,3035.2,7.41141154]
[1764995020885,3.29402463,3035.8,3035.3,0.4887]
[1764995024262,4.11575783,3035.8,3035.3,0.4887]
[1764995025390,3.2939305,3035.9,3035.7,0.4711]
[1764995025691,3.2939305,3035.9,3035.4,5.8569036]
[1764995025692,4.01952461,3035.9,3035.8,0.4711]
[1764995025990,4.01952461,3035.9,3035.5,0.4887]
[1764995025991,4.53952461,3035.9,3035.5,0.4887]
[1764995026360,0.8217332,3035.8,3035.5,0.4887]
[1764995026766,4.11575862,3035.8,3035.5,0.4887]
[1764995028808,4.11575862,3035.8,3035.3,0.4601]
[1764995029274,1.24559411,3035.9,3035.7,0.4927]
[1764995029477,1.24559411,3035.9,3035.8,0.4927]
[1764995029802,4.01951024,3035.9,3035.8,0.4927]
[1764995029975,0.8217332,3036.2,3035.8,0.4927]
[1764995030173,0.52,3036.1,3035.8,0.9528]
[1764995030384,3.81377086,3036.1,3035.8,0.9528]
[1764995030783,3.81377086,3036.1,3035.8,0.4927]
[1764995030989,3.81377086,3036.1,3035.5,0.4601]
[1764995030990,0.8217332,3036.0,3035.5,0.4601]
[1764995031189,0.8217332,3036.0,3035.0,0.72559411]
[1764995031190,0.8217332,3035.8,3035.4,0.4601]
[1764995031389,1.3417332,3036.0,3035.4,0.4601]
[1764995031904,4.11560129,3036.0,3035.4,3.75455113]
[1764995032110,4.63560129,3036.0,3035.4,4.13000624]
[1764995032278,4.63560129,3036.0,3035.5,0.4601]
[1764995032479,4.63554561,3036.0,3035.9,0.4927]
[1764995033185,3.29374025,3036.1,3035.6,0.4601]
[1764995033511,3.29374025,3036.1,3035.5,0.4601]
[1764995033675,3.29374025,3036.1,3035.5,1.00727394]
[1764995033879,3.29374025,3036.1,3035.6,0.4601]
[1764995039619,4.11535874,3036.2,3036.0,0.4927]
[1764995039778,4.63535874,3036.2,3036.1,0.4927]
[1764995039984,4.11535874,3036.2,3036.1,0.4927]
[1764995041086,4.11535874,3036.2,3035.9,0.4601]
[1764995045317,0.8217332,3036.2,3035.9,0.4601]
[1764995047314,4.11534926,3036.2,3035.6,3.29420339]
[1764995047522,4.60324926,3036.2,3035.7,0.4601]
[1764995048221,4.11534926,3036.2,3035.7,0.4601]
[1764995049799,4.58594926,3036.2,3035.7,0.4601]
[1764995050325,0.52,3036.3,3035.7,0.4601]
[1764995050326,3.81348219,3036.3,3035.7,0.4601]
[1764995050528,0.8217332,3036.2,3035.7,0.4601]
[1764995051415,0.497,3035.8,3035.5,0.54817394]
[1764995051619,0.8217332,3036.0,3035.6,0.4697]
[1764995052232,7.10696438,3036.3,3035.9,0.4875]
[1764995052233,0.52,3036.3,3035.9,0.4875]
[1764995052401,3.81359067,3036.2,3036.1,0.4875]
[1764995053121,4.19569067,3036.2,3035.9,0.4697]
[1764995053632,0.3821,3036.2,3035.9,0.4697]
[1764995053828,3.81351948,3036.3,3035.9,0.4697]
[1764995054009,0.52,3036.3,3035.9,0.4697]
[1764995054209,3.29541494,3036.4,3035.9,0.4697]
[1764995054414,0.72759411,3036.4,3035.9,3.7636038]
[1764995054630,1.24759411,3036.4,3035.9,3.7636038]
[1764995054815,1.24759411,3036.4,3036.0,0.4697]
[1764995055838,0.72759411,3036.4,3036.0,0.4697]
[1764995056049,0.72759411,3036.4,3036.3,0.4875]
[1764995056537,0.72759411,3036.4,3036.3,0.9572]
[1764995057036,0.002,3036.4,3036.3,0.4875]
[1764995057231,0.002,3036.4,3036.3,0.9572]
[1764995062128,0.002,3036.4,3036.3,0.4875]
[1764995062842,0.002,3036.4,3036.3,0.9572]
[1764995064871,0.002,3036.4,3036.3,0.4875]
[1764995065363,0.002,3036.4,3036.3,0.9572]
[1764995072850,0.002,3036.4,3036.3,0.9582]
[1764995074658,0.002,3036.4,3036.3,0.4885]
[1764995074861,0.002,3036.4,3036.3,0.9582]
[1764995077658,0.002,3036.4,3036.3,4.69642852]
[1764995077976,0.002,3036.4,3036.3,4.72936334]
[1764995078154,0.002,3036.4,3036.3,4.69642852]
[1764995078560,0.002,3036.4,3036.3,4.72936334]
[1764995081282,0.002,3036.4,3036.3,4.69642852]
[1764995082681,0.002,3036.4,3036.3,4.82827571]
[1764995086282,0.002,3036.4,3036.3,4.86121053]
[1764995088488,0.002,3036.4,3036.3,10.71705768]
[1764995088679,0.002,3036.4,3036.3,10.68412286]
[1764995089397,0.002,3036.4,3036.3,17.26556412]
[1764995090061,0.002,3036.4,3036.3,11.40971697]
[1764995090383,0.002,3036.4,3036.3,17.26556412]
[1764995096301,0.002,3036.4,3036.3,5.08416982]
[1764995096492,0.002,3036.4,3036.3,11.42001697]
[1764995097190,0.4647,3036.4,3036.3,10.45251697]
[1764995097499,0.002,3036.4,3036.3,10.95161697]
[1764995098502,0.002,3036.4,3036.3,10.45251697]
[1764995098503,0.4053,3036.4,3036.3,10.45251697]
[1764995099308,0.8562,3036.4,3036.3,10.45251697]
[1764995100217,0.8562,3036.4,3036.3,0.13284719]
[1764995101667,0.8562,3036.4,3036.3,3.42632938]
[1764995101872,0.8562,3036.4,3036.3,0.001]
[1764995102076,4.14957373,3036.4,3036.3,0.001]
[1764995104534,0.8562,3036.4,3036.3,0.001]
[1764995104702,5.46843092,3036.4,3036.3,0.001]
[1764995111100,5.56843092,3036.4,3036.3,0.001]
[1764995111492,5.46843092,3036.4,3036.3,0.001]
[1764995113221,5.56843092,3036.4,3036.3,0.001]
[1764995115013,5.66843092,3036.4,3036.3,0.001]
[1764995115409,6.07393492,3036.4,3036.3,0.001]
[1764995116123,5.97393492,3036.4,3036.3,0.001]
[1764995116823,6.79952903,3036.4,3036.3,0.001]
[1764995117025,6.93241752,3036.4,3036.3,0.001]
[1764995117323,6.93241752,3036.4,3035.6,0.001]
[1764995117324,3.13109811,3036.3,3035.6,0.001]
[1764995117499,7.68534526,3035.7,3035.6,0.001]
[1764995117699,7.68534526,3035.7,3034.1,5.85584715]
[1764995117700,0.1,3034.8,3034.3,0.1319296]
[1764995117905,0.405504,3034.9,3033.6,9.82015997]
[1764995117906,0.4935,3034.5,3033.9,3.29601184]
[1764995118122,0.4935,3034.5,3034.0,0.32960118]
[1764995118324,0.4935,3034.5,3034.1,0.6259]
[1764995118820,0.52,3034.7,3034.1,0.1522]
[1764995119022,0.9841,3034.7,3034.2,0.4737]
[1764995119338,0.9841,3034.7,3034.1,0.1522]
[1764995119709,0.4641,3034.6,3034.1,0.1522]
[1764995120300,1.2858332,3034.6,3034.1,0.1522]
[1764995120540,1.2858332,3034.6,3034.1,3.92175918]
[1764995120991,0.4641,3034.5,3034.0,3.2959531]
[1764995121197,0.4641,3034.5,3033.5,0.93434139]
[1764995121198,0.405504,3033.8,3033.5,0.11260819]
[1764995121397,1.61949811,3033.6,3033.5,0.11260819]
[1764995121625,2.52903264,3033.6,3033.5,0.11260819]
[1764995121791,6.38954614,3033.6,3033.5,0.11260819]
[1764995121992,7.37973501,3033.6,3033.5,0.11260819]
[1764995122499,9.90073501,3033.6,3033.5,0.11260819]
[1764995123203,0.1,3033.0,3032.0,0.1942]
[1764995123527,0.1,3032.6,3031.6,0.4737]
[1764995123731,0.521,3032.5,3031.5,6.59739402]
[1764995124029,0.521,3032.4,3031.6,1.29269412]
[1764995124231,1.5114177,3032.4,3031.6,1.76639412]
[1764995124405,0.8217332,3032.1,3031.0,0.6259]
[1764995124731,0.926504,3032.0,3031.1,6.32954715]
[1764995125121,0.7602,3031.9,3031.2,3.77264264]
[1764995125299,1.2812,3031.9,3031.2,0.1522]
[1764995125497,0.4641,3031.8,3031.1,0.1522]
[1764995125699,7.08308435,3032.3,3031.1,0.1522]
[1764995125700,0.9904177,3032.4,3031.8,0.4947]
[1764995125932,0.9904177,3032.4,3032.0,0.4947]
[1764995126428,0.9904177,3032.4,3032.3,0.4947]
[1764995126628,0.521,3032.7,3032.3,0.4947]
[1764995126800,0.521,3032.7,3032.3,0.4737]
[1764995126997,0.72559411,3032.7,3032.3,0.4737]
[1764995127199,0.92169411,3032.6,3032.3,0.4737]
[1764995127401,1.8068332,3032.8,3032.3,0.4737]
[1764995127599,0.8217332,3032.8,3032.3,0.4737]
[1764995127801,0.8217332,3032.8,3032.4,3.29771797]
[1764995127802,0.92169411,3032.7,3032.4,3.29771797]
[1764995128028,0.8217332,3032.8,3032.4,3.29771797]
[1764995128029,1.3427332,3033.0,3032.7,0.4947]
[1764995128655,0.8217332,3032.8,3032.7,0.4947]
[1764995129001,1.8068332,3033.0,3032.7,0.4947]
[1764995129002,0.8217332,3033.0,3032.7,0.4947]
[1764995129199,1.2858332,3033.0,3032.7,0.4947]
[1764995129402,0.6202,3032.8,3032.3,3.29775151]
[1764995129631,0.4241,3032.8,3032.3,3.29775151]
[1764995129827,0.4241,3032.8,3032.4,0.4737]
[1764995130028,0.4637,3033.1,3032.7,0.4947]
[1764995130222,1.24659411,3033.2,3032.8,0.4947]
[1764995130531,0.97533363,3033.2,3032.8,0.4947]
[1764995132315,1.2458332,3032.9,3032.3,6.32954715]
[1764995132531,0.0046,3032.8,3032.3,6.32954715]
[1764995132717,0.0046,3032.8,3032.4,3.29763951]
[1764995132917,0.8217332,3032.9,3032.4,3.77133951]
[1764995133127,0.8217332,3032.9,3032.5,0.4737]
[1764995133434,0.8217332,3032.9,3032.5,3.77129817]
[1764995133646,1.3427332,3033.1,3032.8,0.4947]
[1764995133837,0.8217332,3033.3,3033.0,0.4947]
[1764995134008,0.8217332,3033.1,3033.0,0.4947]
[1764995134640,0.521,3033.4,3033.0,0.9684]
[1764995134936,0.8217332,3033.5,3033.3,0.4947]
[1764995137340,0.8217332,3033.6,3033.3,0.4947]
[1764995137931,5.10774124,3034.0,3033.2,3.2968346]
[1764995137932,0.1418,3034.8,3033.6,3.2964135]
[1764995138142,0.8217332,3034.0,3033.7,5.85584715]
[1764995138339,0.8217332,3034.0,3033.7,6.32954715]
[1764995138533,0.8217332,3034.0,3033.9,0.4947]
[1764995139246,1.2443332,3034.0,3033.8,0.8217332]
[1764995140530,0.4226,3034.0,3033.8,0.8217332]
[1764995140829,4.57051484,3034.2,3033.8,0.8217332]
[1764995141039,0.453,3034.1,3033.8,0.8217332]
[1764995141238,0.002,3033.9,3033.8,0.8217332]
[1764995142153,0.4356,3033.9,3033.8,0.8217332]
[1764995142525,0.4356,3033.9,3033.3,0.93568818]
[1764995142851,0.4356,3033.9,3033.6,0.98985236]
[1764995143726,0.002,3033.9,3033.6,4.78375687]
[1764995143923,0.002,3033.9,3033.8,0.4656]
[1764995145356,0.002,3033.9,3033.8,0.9631]
[1764995145768,0.002,3033.9,3033.8,4.25929618]
[1764995145986,0.002,3033.9,3033.8,5.01486565]
[1764995146204,0.002,3033.9,3033.8,2.70844672]
[1764995146329,0.002,3033.9,3033.8,2.21094672]
[1764995146751,0.4902,3033.9,3033.8,0.98977725]
[1764995147061,0.8889,3033.9,3033.4,3.29662896]
[1764995147261,0.8889,3033.9,3033.5,0.98983929]
[1764995147646,1.0867,3033.9,3033.5,0.98983929]
[1764995148052,0.4902,3033.9,3033.5,1.48733929]
[1764995149734,0.397,3033.6,3033.5,4.286355]
[1764995150034,0.397,3033.6,3033.3,0.001]
[1764995150240,4.01690141,3033.9,3033.5,0.4656]
[1764995150241,0.002,3033.9,3033.5,0.4656]
[1764995150440,0.002,3033.9,3033.8,0.4656]
[1764995151269,0.4339,3033.9,3033.4,0.4975]
[1764995151977,0.4339,3033.9,3033.5,3.29652216]
[1764995152159,0.4339,3033.9,3033.4,3.7941163]
[1764995152548,0.4339,3033.9,3033.5,0.4975]
[1764995152748,0.8217332,3033.8,3033.5,0.4975]
[1764995153244,0.8217332,3033.8,3033.4,3.2966163]
[1764995153453,1.2747332,3033.8,3033.4,3.2966163]
[1764995153858,1.2747332,3033.8,3033.3,3.29773952]
[1764995154063,0.9217332,3033.8,3033.3,0.001]
[1764995154245,0.4191,3033.4,3033.3,0.001]
[1764995154781,0.4659,3033.7,3033.3,0.4729]
[1764995155863,0.8217332,3033.6,3033.3,0.4729]
[1764995156356,0.8217332,3033.6,3033.3,0.001]
[1764995157479,0.8217332,3033.6,3033.3,0.4737]
[1764995158688,0.8217332,3033.6,3033.3,3.77035028]
[1764995158899,0.8217332,3033.6,3033.3,3.29765028]
[1764995159571,0.8217332,3033.8,3033.5,0.4719]
[1764995159776,0.002,3033.9,3033.7,0.4719]
[1764995159971,0.002,3033.9,3033.8,0.4719]
[1764995160769,0.002,3033.9,3033.8,4.24079618]
[1764995161008,0.002,3033.9,3033.8,0.9446]
[1764995161315,0.002,3033.9,3033.8,0.4719]
[1764995161810,0.002,3033.9,3033.8,0.9446]
[1764995162112,0.002,3033.9,3033.8,0.4719]
[1764995163103,0.002,3033.9,3033.8,4.66488459]
[1764995163301,0.4202,3033.9,3033.7,0.521]
[1764995163504,0.4674,3033.9,3033.7,3.81727929]
[1764995163705,0.4187,3033.8,3033.7,3.29627929]
[1764995164012,0.002,3033.9,3033.7,3.29627929]
[1764995165300,0.002,3033.9,3033.5,6.59303451]